bitfinex/quotes_BTCUSD_20251016
["timestamp","ask_amount","ask_price","bid_price","bid_amount"]
[1760609644069,0.17915855,111640.0,111630.0,5.0]
[1760609644303,0.17915855,111640.0,111630.0,5.08969012]
[1760609644515,0.19412639,111640.0,111630.0,0.08969012]
[1760609645223,0.17917502,111630.0,111620.0,5.09208]
[1760609645435,0.17917502,111630.0,111620.0,0.18177012]
[1760609645885,0.19414286,111630.0,111620.0,0.08969012]
[1760609646106,0.17920494,111610.0,111600.0,5.0]
[1760609646316,0.19417278,111610.0,111600.0,5.08969012]
[1760609646531,0.17922752,111590.0,111580.0,0.00271348]
[1760609646757,0.17922752,111590.0,111580.0,0.0924036]
[1760609646976,0.17922752,111590.0,111580.0,5.18208005]
[1760609647200,0.17922752,111590.0,111580.0,5.0924036]
[1760609647423,0.55585674,111590.0,111580.0,5.09255276]
[1760609647666,0.17922752,111590.0,111580.0,0.09255276]
[1760609647881,0.19419536,111590.0,111580.0,0.00286264]
[1760609648341,0.17922752,111590.0,111580.0,0.09255276]
[1760609648556,1.02172914,111590.0,111580.0,0.00286264]
[1760609648771,1.0067613,111590.0,111580.0,0.00286264]
[1760609649463,0.64509992,111590.0,111580.0,0.00286264]
[1760609649906,0.61150752,111590.0,111580.0,0.00286264]
[1760609650118,0.51922752,111590.0,111580.0,0.00286264]
[1760609650327,0.61150752,111590.0,111580.0,0.00286264]
[1760609650534,0.9731689,111590.0,111580.0,0.00286264]
[1760609651144,0.61150752,111590.0,111580.0,0.00286264]
[1760609651385,0.9731689,111590.0,111580.0,0.00286264]
[1760609651600,1.0990413,111590.0,111580.0,0.00286264]
[1760609651822,0.17927572,111560.0,111550.0,0.08968127]
[1760609652047,0.19424356,111560.0,111550.0,0.07190121]
[1760609652257,0.17927572,111560.0,111550.0,0.00014911]
[1760609652470,0.19424356,111560.0,111550.0,0.00014911]
[1760609655325,0.19424356,111560.0,111550.0,0.1077684]
[1760609655533,0.17927572,111560.0,111550.0,0.1077684]
[1760609655995,0.18823169,111580.0,111560.0,5.17927572]
[1760609656200,0.17925621,111580.0,111570.0,0.10761608]
[1760609656418,0.17922752,111590.0,111570.0,0.37907573]
[1760609656629,0.17922752,111590.0,111580.0,0.01600949]
[1760609656847,0.17924359,111580.0,111570.0,0.5435515]
[1760609657065,0.17922752,111590.0,111570.0,0.72281115]
[1760609657279,0.17922752,111590.0,111580.0,0.46927585]
[1760609657492,0.17922752,111590.0,111580.0,0.08969012]
[1760609657706,0.19419536,111590.0,111580.0,0.10761447]
[1760609657916,0.19419536,111590.0,111570.0,0.0922]
[1760609657917,0.17924359,111580.0,111570.0,0.0922]
[1760609658136,0.17924359,111580.0,111570.0,0.08969012]
[1760609658347,0.17925965,111570.0,111560.0,0.0922]
[1760609658560,0.17925965,111570.0,111560.0,0.19981769]
[1760609658774,0.19422749,111570.0,111560.0,0.18189012]
[1760609659873,0.18818555,111600.0,111580.0,5.0]
[1760609660092,0.52816471,111610.0,111590.0,0.01792275]
[1760609660093,0.18816471,111610.0,111590.0,0.01792275]
[1760609660334,0.17921146,111600.0,111590.0,0.37958413]
[1760609660544,0.17921146,111600.0,111590.0,0.36166138]
[1760609660765,0.18816471,111610.0,111590.0,0.63057902]
[1760609660980,0.17921146,111600.0,111590.0,0.08969012]
[1760609661192,0.19323195,111600.0,111590.0,0.10761287]
[1760609661408,0.19323195,111600.0,111590.0,0.08969012]
[1760609661648,0.17924359,111580.0,111570.0,0.36166138]
[1760609661861,0.17924359,111580.0,111570.0,5.18203923]
[1760609662077,0.17924359,111580.0,111570.0,0.18203923]
[1760609662525,0.17924359,111580.0,111570.0,0.54370061]
[1760609662769,0.17924359,111580.0,111570.0,0.72296026]
[1760609662989,0.18818889,111590.0,111580.0,0.17924359]
[1760609663202,0.18818889,111590.0,111580.0,0.28685806]
[1760609663203,0.17922752,111590.0,111580.0,0.28685806]
[1760609663465,0.18817203,111600.0,111580.0,5.63059264]
[1760609663680,0.17922752,111590.0,111580.0,5.4513515]
[1760609663898,0.17922752,111590.0,111580.0,5.5435115]
[1760609664114,0.17922752,111590.0,111580.0,0.5435115]
[1760609664325,0.18817203,111600.0,111580.0,5.72275509]
[1760609664540,0.18817203,111600.0,111590.0,5.0]
[1760609664756,0.18817203,111600.0,111590.0,5.08969012]
[1760609664977,0.190906,111620.0,111600.0,0.17921146]
[1760609664979,0.00271299,111620.0,111600.0,0.17921146]
[1760609665200,0.01768083,111620.0,111610.0,5.0]
[1760609665444,0.18189415,111620.0,111610.0,5.0]
[1760609665660,0.17919541,111610.0,111600.0,0.18185012]
[1760609666076,0.19416325,111610.0,111600.0,0.18185012]
[1760609666496,0.19431233,111610.0,111600.0,0.18185012]
[1760609670403,0.17922752,111590.0,111580.0,0.54090446]
[1760609670643,0.17922563,111600.0,111580.0,0.72263458]
[1760609670853,0.17922752,111590.0,111580.0,0.27128308]
[1760609671109,0.17922752,111590.0,111580.0,0.72263458]
[1760609671321,0.17922563,111600.0,111590.0,0.17922752]
[1760609671732,0.17922563,111600.0,111590.0,0.26891764]
[1760609671950,0.17922563,111600.0,111590.0,0.08969012]
[1760609672794,0.19419347,111600.0,111590.0,0.08969012]
[1760609673878,0.17923958,111590.0,111580.0,5.0]
[1760609674091,0.17923958,111590.0,111580.0,0.08969012]
[1760609674301,0.17924359,111580.0,111570.0,0.00058429]
[1760609674577,0.17924359,111580.0,111570.0,0.18227441]
[1760609674792,0.19421143,111580.0,111570.0,0.18227441]
[1760609675074,0.19421143,111580.0,111570.0,0.09027441]
[1760609675304,0.19421143,111580.0,111470.0,5.36166138]
[1760609675305,0.0089686,111500.0,111470.0,5.36166138]
[1760609675539,0.17938513,111500.0,111480.0,5.0]
[1760609675765,0.01496784,111500.0,111490.0,5.0]
[1760609675990,0.19434003,111500.0,111490.0,5.0]
[1760609676714,0.19434003,111500.0,111490.0,0.00049768]
[1760609677429,0.17937219,111500.0,111490.0,5.38009788]
[1760609677647,0.17937219,111500.0,111490.0,5.36215906]
[1760609677872,0.18835473,111510.0,111500.0,5.0]
[1760609678337,0.18835259,111520.0,111500.0,5.0]
[1760609678582,0.17938622,111510.0,111500.0,5.0]
[1760609679072,0.18835259,111520.0,111500.0,0.17937219]
[1760609679309,0.17935611,111510.0,111500.0,0.01793721]
[1760609679524,0.19363085,111510.0,111500.0,0.01793721]
[1760609679951,0.19363085,111510.0,111500.0,0.1973094]
[1760609681025,0.18835259,111520.0,111510.0,0.17935611]
[1760609681239,0.17935611,111510.0,111500.0,0.276185]
[1760609681693,0.17935611,111510.0,111500.0,0.18650293]
[1760609681906,0.17935611,111510.0,111500.0,0.20444014]
[1760609682368,0.18835259,111520.0,111500.0,5.36587512]
[1760609682602,0.18835259,111520.0,111510.0,5.0]
[1760609682810,0.18835259,111520.0,111510.0,5.0035078]
[1760609683022,0.18835259,111520.0,111510.0,0.0035078]
[1760609683480,0.17934002,111520.0,111510.0,0.09319792]
[1760609683767,0.19430786,111520.0,111510.0,0.09319792]
[1760609684000,0.19430786,111520.0,111510.0,0.27255403]
[1760609684225,0.52834752,111540.0,111510.0,5.27255403]
[1760609684442,0.17932394,111530.0,111520.0,0.09264]
[1760609684901,0.52834752,111540.0,111520.0,0.27198002]
[1760609685115,0.18834752,111540.0,111530.0,5.0]
[1760609685334,0.17930787,111540.0,111530.0,5.0]
[1760609686195,0.17936737,111550.0,111530.0,0.17932394]
[1760609686439,0.12181528,111550.0,111530.0,0.19131609]
[1760609686655,0.17930787,111540.0,111530.0,0.01199215]
[1760609686867,0.19152007,111540.0,111530.0,0.01199215]
[1760609687081,0.19152007,111540.0,111530.0,0.19131609]
[1760609687301,0.19152007,111540.0,111530.0,0.01199215]
[1760609687941,0.19152007,111540.0,111530.0,0.00014911]
[1760609688612,0.19152007,111540.0,111530.0,0.01272806]
[1760609689680,0.19152007,111540.0,111530.0,0.19439012]
[1760609689972,0.10997224,111550.0,111530.0,0.18181117]
[1760609690192,0.01496784,111540.0,111530.0,0.17947305]
[1760609690438,0.01496784,111550.0,111540.0,5.0]
[1760609690649,0.01496784,111550.0,111540.0,0.08969012]
[1760609690650,0.19425963,111550.0,111540.0,0.08969012]
[1760609692814,0.17930787,111540.0,111530.0,0.27202973]
[1760609693037,0.12300643,111550.0,111530.0,0.36171985]
[1760609693248,0.17930787,111540.0,111530.0,0.36171985]
[1760609693467,0.12300643,111550.0,111530.0,0.36171985]
[1760609693695,0.17930787,111540.0,111530.0,0.18239923]
[1760609693907,0.17930787,111540.0,111530.0,0.36172317]
[1760609694364,0.12300643,111550.0,111530.0,0.36172317]
[1760609694572,0.19425963,111550.0,111540.0,0.28692877]
[1760609694784,0.19425963,111550.0,111540.0,0.26899799]
[1760609695238,0.18824723,111560.0,111540.0,0.26899799]
[1760609695471,0.19390666,111550.0,111540.0,0.27075142]
[1760609695683,0.19390666,111550.0,111540.0,0.09144355]
[1760609696106,0.19390666,111550.0,111540.0,0.27075142]
[1760609697274,0.01461487,111550.0,111540.0,0.27075142]
[1760609697483,0.01003198,111550.0,111540.0,0.27075142]
[1760609697699,0.18824723,111560.0,111550.0,0.17929179]
[1760609697911,0.18830032,111570.0,111550.0,0.19722096]
[1760609698118,0.19424356,111560.0,111550.0,0.0924]
[1760609700119,0.17929179,111550.0,111540.0,0.36139341]
[1760609700536,0.17927572,111560.0,111540.0,0.36139341]
[1760609700742,0.17929179,111550.0,111540.0,0.36139341]
[1760609701169,0.17926242,111570.0,111550.0,5.0]
[1760609701399,0.17924359,111580.0,111560.0,5.37918626]
[1760609701609,0.17925965,111570.0,111560.0,0.33021012]
[1760609701856,0.17925965,111570.0,111560.0,0.50948584]
[1760609702059,0.17924359,111580.0,111560.0,0.50948584]
[1760609702273,0.19421143,111580.0,111560.0,0.24052]
[1760609702486,0.17930787,111540.0,111530.0,0.50014911]
[1760609702726,0.28679571,111540.0,111530.0,5.00014911]
[1760609702932,0.27182787,111540.0,111530.0,0.00014911]
[1760609703146,0.17930787,111540.0,111530.0,0.00014911]
[1760609703360,0.28679571,111540.0,111530.0,0.00014911]
[1760609703562,0.27182787,111540.0,111530.0,0.00248723]
[1760609703770,0.02815772,111540.0,111530.0,0.00248723]
[1760609704034,0.56243343,111540.0,111530.0,1e-08]
[1760609704233,1.08446333,111540.0,111530.0,1e-08]
[1760609704676,1.17415345,111540.0,111530.0,1e-08]
[1760609706001,0.67333799,111540.0,111530.0,1e-08]
[1760609706215,0.55549015,111540.0,111530.0,1e-08]
[1760609706427,0.17930787,111540.0,111530.0,1e-08]
[1760609706644,0.17930627,111550.0,111530.0,0.17932395]
[1760609706863,0.19427571,111540.0,111530.0,0.01793239]
[1760609707073,0.17933621,111530.0,111520.0,0.01380241]
[1760609707286,0.18827326,111540.0,111520.0,0.08969012]
[1760609707493,0.17932394,111530.0,111520.0,0.28696414]
[1760609707703,0.18827326,111540.0,111530.0,5.0]
[1760609708569,0.17932394,111530.0,111520.0,0.08969012]
[1760609709678,0.17934002,111520.0,111510.0,0.09248]
[1760609709891,0.19430786,111520.0,111510.0,0.08969012]
[1760609710316,0.17935611,111510.0,111500.0,0.09244]
[1760609710585,0.17937884,111500.0,111490.0,5.18213012]
[1760609710788,0.17935611,111510.0,111500.0,5.0]
[1760609710996,0.17935611,111510.0,111500.0,0.26906231]
[1760609711203,0.19432395,111510.0,111500.0,0.26906231]
[1760609711413,0.01496784,111510.0,111500.0,0.26906231]
[1760609711633,0.19432395,111510.0,111500.0,0.26906231]
[1760609712745,0.01496784,111510.0,111500.0,0.26906231]
[1760609712952,0.19432395,111510.0,111500.0,0.26906231]
[1760609713167,0.19432395,111510.0,111500.0,0.27081669]
[1760609713573,0.19432395,111510.0,111500.0,0.0914445]
[1760609713781,0.19432395,111510.0,111500.0,0.28829366]
[1760609713993,0.19432395,111510.0,111500.0,0.0914445]
[1760609714420,0.19432395,111510.0,111500.0,0.10938171]
[1760609714621,0.19432395,111510.0,111500.0,0.0914445]
[1760609715250,0.19432395,111510.0,111500.0,0.2887539]
[1760609715464,0.19432395,111510.0,111500.0,0.0914445]
[1760609715722,0.19432395,111510.0,111500.0,0.10888319]
[1760609715910,0.18892962,111510.0,111500.0,0.10218419]
[1760609716319,0.18892962,111510.0,111500.0,0.0914445]
[1760609716526,0.18892962,111510.0,111500.0,0.00175438]
[1760609716527,0.19432395,111510.0,111500.0,0.00175438]
[1760609716734,0.53432395,111510.0,111500.0,0.00175438]
[1760609716957,0.51935611,111510.0,111500.0,0.00175438]
[1760609717817,0.34,111510.0,111500.0,0.10938171]
[1760609718028,0.17935611,111510.0,111500.0,0.2887539]
[1760609718244,0.01496784,111510.0,111500.0,0.1837645]
[1760609718456,0.19432395,111510.0,111500.0,0.1837645]
[1760609719759,0.19432395,111510.0,111500.0,0.36313669]
[1760609720167,0.19432395,111510.0,111500.0,0.1837645]
[1760609720373,0.17935611,111510.0,111500.0,0.36313669]
[1760609721253,0.19432395,111510.0,111500.0,0.1837645]
[1760609721675,0.19432395,111510.0,111500.0,0.36313669]
[1760609722130,0.17935611,111510.0,111500.0,0.36313669]
[1760609722349,0.19432395,111510.0,111500.0,0.1837645]
[1760609722563,0.19432395,111510.0,111500.0,0.36313669]
[1760609722998,0.19432395,111510.0,111500.0,0.0914445]
[1760609723450,0.19432395,111510.0,111500.0,0.10938171]
[1760609724093,0.19432395,111510.0,111500.0,0.0914445]
[1760609725247,0.19432395,111510.0,111500.0,0.00175438]
[1760609726141,0.53432395,111510.0,111500.0,0.00175438]
[1760609726350,0.51935611,111510.0,111500.0,0.00175438]
[1760609726562,0.68912248,111520.0,111500.0,0.14995438]
[1760609726780,0.19432395,111510.0,111500.0,0.1482]
[1760609726993,0.32266623,111510.0,111500.0,0.1482]
[1760609727226,0.17937219,111500.0,111490.0,0.00049768]
[1760609727437,0.23052231,111500.0,111490.0,0.00049768]
[1760609727652,0.21555447,111500.0,111490.0,0.00049768]
[1760609728360,0.17935611,111510.0,111490.0,0.00049768]
[1760609728629,0.17934756,111520.0,111500.0,0.26906231]
[1760609728874,0.18829013,111530.0,111510.0,0.17935611]
[1760609729095,0.17932394,111530.0,111510.0,0.27151611]
[1760609729321,0.19429178,111530.0,111510.0,0.36120623]
[1760609729784,0.01496784,111530.0,111520.0,0.26903014]
[1760609730029,0.19429178,111530.0,111520.0,0.26903014]
[1760609730949,0.19429178,111530.0,111520.0,0.08969012]
[1760609732353,0.17934002,111520.0,111510.0,0.09328949]
[1760609732587,0.17934002,111520.0,111510.0,0.18297961]
[1760609732836,0.19430786,111520.0,111510.0,0.18297961]
[1760609733066,0.17934002,111520.0,111510.0,0.09085961]
[1760609733296,0.19430786,111520.0,111510.0,0.09085961]
[1760609734237,0.19430786,111520.0,111510.0,0.00116949]
[1760609735363,0.5192923,111550.0,111530.0,0.17932375]
[1760609735588,0.5192923,111550.0,111530.0,0.36109387]
[1760609735589,0.1792923,111550.0,111530.0,0.36109387]
[1760609736715,0.1792923,111550.0,111540.0,0.17930787]
[1760609737558,0.19426014,111550.0,111540.0,0.17930787]
[1760609738455,0.01496784,111550.0,111540.0,0.17930787]
[1760609738680,0.17929179,111550.0,111540.0,0.1793031]
[1760609738901,0.19425963,111550.0,111530.0,0.36109387]
[1760609739350,0.17930787,111540.0,111530.0,0.18177012]
[1760609739562,0.17932394,111530.0,111520.0,0.17933348]
[1760609739780,0.17932394,111530.0,111520.0,0.3611436]
[1760609739991,0.19429178,111530.0,111520.0,0.18181012]
[1760609740204,0.19429178,111530.0,111520.0,0.09212]
[1760609740461,0.19429178,111530.0,111520.0,0.27146002]
[1760609740926,0.19429178,111530.0,111520.0,0.27304471]
[1760609741356,0.51931414,111540.0,111520.0,0.36273483]
[1760609741569,0.01496784,111530.0,111520.0,0.36273483]
[1760609742047,0.19428198,111540.0,111530.0,0.17932394]
[1760609742268,0.17931414,111540.0,111530.0,0.17932394]
[1760609742480,0.18825637,111550.0,111530.0,0.17932394]
[1760609742696,0.17929504,111550.0,111540.0,0.17930787]
[1760609742922,0.52825032,111560.0,111550.0,0.17929179]
[1760609743129,0.18874699,111560.0,111550.0,0.17929179]
[1760609743589,0.17977239,111560.0,111550.0,0.17929179]
[1760609743810,0.17977239,111560.0,111540.0,0.36107799]
[1760609744024,0.17929179,111550.0,111540.0,0.18177012]
[1760609744684,0.17929179,111550.0,111540.0,0.09208]
[1760609744896,0.19425963,111550.0,111540.0,0.09208]
[1760609745119,0.19425963,111550.0,111520.0,0.32812284]
[1760609745336,0.17932394,111530.0,111520.0,0.41781296]
[1760609745550,0.17932394,111530.0,111520.0,0.50985296]
[1760609745773,0.17929179,111550.0,111530.0,0.17932394]
[1760609745989,0.17930787,111540.0,111530.0,0.28694645]
[1760609746201,0.17930787,111540.0,111530.0,0.36105406]
[1760609746418,0.19427571,111540.0,111530.0,0.36105406]
[1760609746639,0.19427571,111540.0,111530.0,0.18173012]
[1760609747110,0.19427571,111540.0,111530.0,0.27136394]
[1760609748614,0.18825637,111550.0,111540.0,0.17930787]
[1760609749071,0.17929179,111550.0,111540.0,0.17930787]
[1760609749550,0.19425963,111550.0,111540.0,0.17930787]
[1760609750008,0.01496784,111550.0,111540.0,0.28692877]
[1760609750221,0.01496784,111550.0,111540.0,0.26899799]
[1760609750437,0.17977762,111560.0,111550.0,0.17929179]
[1760609750668,0.17977762,111560.0,111550.0,0.09196]
[1760609751111,0.17977762,111560.0,111550.0,0.27125179]
[1760609751542,0.17977762,111560.0,111550.0,0.09196]
[1760609752003,0.17977762,111560.0,111550.0,0.27125179]
[1760609752224,0.17977762,111560.0,111550.0,0.09196]
[1760609752458,0.00049667,111560.0,111550.0,0.09196]
[1760609752682,0.01546451,111560.0,111550.0,0.09196]
[1760609752907,0.19474023,111560.0,111550.0,0.09196]
[1760609753134,0.17977239,111560.0,111550.0,0.09196]
[1760609754922,0.17929179,111550.0,111540.0,0.32750787]
[1760609755159,0.19425963,111550.0,111540.0,0.41942787]
[1760609755384,0.19425963,111550.0,111540.0,0.24012]
[1760609755611,0.19425963,111550.0,111540.0,0.41942787]
[1760609755883,0.01496784,111550.0,111540.0,0.50911799]
[1760609756112,0.17929179,111550.0,111540.0,0.50911799]
[1760609756350,0.17929179,111550.0,111540.0,0.36091799]
[1760609756821,0.17977239,111560.0,111550.0,0.17929179]
[1760609757041,0.17929179,111550.0,111540.0,0.36091799]
[1760609757253,0.19425963,111550.0,111540.0,0.36091799]
[1760609757471,0.17929179,111550.0,111540.0,0.36091799]
[1760609757915,0.00049667,111560.0,111550.0,0.17929179]
[1760609758151,0.00049667,111560.0,111550.0,0.64897172]
[1760609758388,0.00049667,111560.0,111550.0,0.63104255]
[1760609759063,0.00049667,111560.0,111550.0,5.63104255]
[1760609759753,1e-08,111560.0,111550.0,6.33410319]
[1760609759990,0.00271472,111570.0,111560.0,5.51927572]
[1760609760220,0.00286365,111570.0,111560.0,6.06286648]
[1760609761626,0.00286365,111570.0,111560.0,6.06386648]
[1760609762348,0.00286365,111570.0,111560.0,5.70180584]
[1760609762572,0.00286365,111570.0,111560.0,6.06386648]
[1760609763463,0.17927176,111630.0,111610.0,0.17919244]
[1760609763726,0.17917935,111620.0,111610.0,0.72274498]
[1760609763972,0.17917935,111620.0,111610.0,0.72274617]
[1760609764184,0.00292021,111620.0,111610.0,0.72274617]
[1760609764405,0.1970674,111620.0,111610.0,0.36068553]
[1760609764638,0.17919541,111610.0,111590.0,0.1482]
[1760609764867,0.17919541,111610.0,111590.0,5.08969012]
[1760609764868,0.17921146,111600.0,111590.0,5.08969012]
[1760609765093,0.17921146,111600.0,111590.0,0.18149012]
[1760609765308,0.01496784,111600.0,111590.0,0.37864039]
[1760609765524,0.01496784,111600.0,111590.0,0.36071764]
[1760609765744,0.18837904,111630.0,111600.0,0.17921146]
[1760609765955,0.53351901,111620.0,111610.0,0.0918]
[1760609766182,0.51918052,111620.0,111610.0,0.0918]
[1760609766625,0.17919541,111610.0,111600.0,0.08969012]
[1760609766847,0.17921146,111600.0,111590.0,0.26890139]
[1760609767073,0.13250173,111610.0,111590.0,0.43250876]
[1760609767294,0.14746957,111610.0,111590.0,0.7945694]
[1760609767993,0.01496784,111610.0,111600.0,0.17921146]
[1760609768213,0.19416325,111610.0,111590.0,0.7945694]
[1760609768434,0.19416325,111610.0,111600.0,0.36206064]
[1760609768648,0.18813948,111620.0,111600.0,0.63096222]
[1760609768868,0.17917935,111620.0,111610.0,0.27099468]
[1760609769082,0.19414719,111620.0,111610.0,0.0918]
[1760609769301,0.19414719,111620.0,111610.0,0.27099541]
[1760609769524,0.56456132,111630.0,111620.0,0.17917935]
[1760609769746,0.00014912,111630.0,111620.0,0.54123999]
[1760609769964,0.00014912,111630.0,111620.0,0.63093011]
[1760609770403,0.17931242,111630.0,111620.0,0.08969012]
[1760609770620,0.17931242,111630.0,111620.0,0.10319464]
[1760609770836,0.19355168,111630.0,111620.0,0.18149012]
[1760609771334,0.19355168,111630.0,111620.0,0.36066947]
[1760609771995,0.19355168,111630.0,111620.0,0.18149012]
[1760609772214,0.19355168,111630.0,111620.0,0.18145012]
[1760609772428,0.19355168,111630.0,111620.0,0.09176]
[1760609772671,0.19355168,111630.0,111620.0,0.27093935]
[1760609772894,0.19355168,111630.0,111620.0,0.09176]
[1760609773332,0.01438838,111630.0,111620.0,0.63299999]
[1760609773547,0.19355168,111630.0,111620.0,0.27093935]
[1760609773764,0.19355168,111630.0,111620.0,0.09176]
[1760609774023,0.1792004,111610.0,111590.0,5.17922375]
[1760609774242,0.18827058,111630.0,111600.0,0.7944337]
[1760609774462,0.17931514,111630.0,111610.0,0.54125566]
[1760609774672,0.17931514,111630.0,111620.0,0.09172]
[1760609775105,0.17931242,111630.0,111620.0,0.27089935]
[1760609775596,0.00365305,111630.0,111620.0,0.27089935]
[1760609775819,0.18281635,111630.0,111620.0,0.27089935]
[1760609776516,0.18281635,111630.0,111620.0,0.09172]
[1760609777827,0.18281635,111630.0,111620.0,0.27089935]
[1760609778083,0.00365305,111630.0,111620.0,0.27089935]
[1760609778304,0.18281635,111630.0,111620.0,0.27089935]
[1760609778530,0.00365305,111630.0,111620.0,0.36058947]
[1760609779026,0.00365305,111630.0,111620.0,0.72265011]
[1760609779531,0.00365305,111630.0,111620.0,5.72265011]
[1760609779757,0.00365305,111630.0,111620.0,6.06265011]
[1760609780449,0.00365305,111630.0,111620.0,5.70058947]
[1760609780893,0.00365305,111630.0,111620.0,6.06265011]
[1760609781122,0.00365305,111630.0,111620.0,5.70058947]
[1760609781340,0.00365305,111630.0,111620.0,6.06365011]
[1760609781791,0.00365305,111630.0,111620.0,6.06265011]
[1760609782019,0.00365305,111630.0,111620.0,0.08969012]
[1760609782240,0.00365305,111630.0,111620.0,0.3784274]
[1760609782452,0.00365305,111630.0,111620.0,0.72257011]
[1760609782902,0.00365305,111630.0,111620.0,0.36050947]
[1760609783166,0.00365305,111630.0,111620.0,5.72357011]
[1760609783383,0.00365305,111630.0,111620.0,5.72257011]
[1760609783599,0.00365305,111630.0,111620.0,0.08969012]
[1760609783830,0.00365305,111630.0,111620.0,0.74048804]
[1760609784048,0.00365305,111630.0,111620.0,0.36050947]
[1760609784270,0.01091361,111640.0,111620.0,0.36050947]
[1760609784514,0.19006114,111640.0,111620.0,0.36050947]
[1760609785168,0.12197607,111650.0,111630.0,0.1791633]
[1760609785384,0.19264535,111650.0,111640.0,0.09164]
[1760609785599,0.01351378,111650.0,111640.0,0.09164]
[1760609785823,0.19264499,111650.0,111640.0,0.09164]
[1760609787417,0.11650676,111660.0,111640.0,5.37839209]
[1760609787650,0.11650676,111660.0,111650.0,0.63088197]
[1760609787872,0.11650676,111660.0,111650.0,0.26882133]
[1760609788103,0.11650676,111660.0,111650.0,0.63088197]
[1760609788327,0.11650676,111660.0,111650.0,0.26882133]
[1760609789067,0.29562193,111660.0,111650.0,0.36046133]
[1760609789300,0.29562193,111660.0,111650.0,0.18133012]
[1760609789791,0.29562193,111660.0,111650.0,0.08969012]
[1760609790034,0.30457768,111660.0,111650.0,0.0916]
[1760609790298,0.29562193,111660.0,111650.0,0.27073121]
[1760609791177,0.29562193,111660.0,111650.0,0.0916]
[1760609791626,0.29737296,111660.0,111650.0,0.27073121]
[1760609792083,0.29737296,111660.0,111650.0,0.0916]
[1760609792743,0.29737296,111660.0,111650.0,0.2398]
[1760609792954,0.29737296,111660.0,111650.0,0.27073121]
[1760609793434,0.11825779,111660.0,111650.0,0.27073121]
[1760609793646,0.3123408,111660.0,111650.0,0.27073121]
[1760609793861,0.29737296,111660.0,111650.0,0.27073121]
[1760609795021,0.17914725,111640.0,111630.0,5.17915784]
[1760609795236,0.17913531,111650.0,111640.0,0.17914725]
[1760609795451,0.19410315,111650.0,111640.0,0.26883737]
[1760609795665,0.19410315,111650.0,111640.0,0.27862897]
[1760609795884,0.23924199,111650.0,111630.0,0.1791633]
[1760609796116,0.22427415,111650.0,111630.0,0.2706833]
[1760609796339,0.17913121,111650.0,111640.0,0.17914725]
[1760609796549,0.30457768,111660.0,111640.0,0.17914725]
[1760609796760,0.29562193,111660.0,111650.0,0.17913121]
[1760609797214,0.29562193,111660.0,111640.0,0.26883737]
[1760609797215,0.17913121,111650.0,111640.0,0.26883737]
[1760609798774,0.17914725,111640.0,111630.0,0.10110264]
[1760609799016,0.17914725,111640.0,111630.0,0.36995606]
[1760609799231,0.19411509,111640.0,111630.0,0.36037342]
[1760609799451,0.19411509,111640.0,111620.0,0.17917519]
[1760609799663,0.01496784,111640.0,111620.0,0.73959044]
[1760609799867,0.18853274,111640.0,111630.0,0.1791633]
[1760609800101,0.19268784,111640.0,111620.0,0.36042531]
[1760609800321,0.1791633,111630.0,111620.0,0.36042947]
[1760609800538,0.1791633,111630.0,111620.0,0.18125012]
[1760609800969,0.1791633,111630.0,111620.0,0.09156]
[1760609801178,0.19413114,111630.0,111620.0,0.09156]
[1760609802540,0.19413114,111630.0,111620.0,0.27073935]
[1760609802541,0.01496784,111630.0,111620.0,0.27073935]
[1760609802779,0.11650676,111660.0,111650.0,6.01913121]
[1760609803013,0.13746932,111670.0,111650.0,6.46396271]
[1760609803242,0.13746932,111670.0,111660.0,5.93806742]
[1760609803471,0.13746932,111670.0,111660.0,5.92015591]
[1760609803704,0.13746932,111670.0,111660.0,6.03842293]
[1760609803953,0.12937006,111680.0,111660.0,6.03842293]
[1760609804193,0.12937006,111680.0,111670.0,5.7693367]
[1760609804430,0.12937006,111680.0,111670.0,5.72284989]
[1760609804667,0.12937006,111680.0,111670.0,5.42834625]
[1760609804889,0.12937006,111680.0,111670.0,5.76182999]
[1760609805592,0.12937006,111680.0,111670.0,5.79190146]
[1760609806051,0.12937006,111680.0,111670.0,5.76182999]
[1760609808235,0.12937006,111680.0,111670.0,5.72284989]
[1760609809424,0.12937006,111680.0,111670.0,5.86006532]
[1760609809888,0.13170424,111680.0,111670.0,5.86006532]
[1760609810141,0.13170424,111680.0,111670.0,5.89013679]
[1760609810402,0.13170424,111680.0,111670.0,5.86006532]
[1760609810899,0.13170424,111680.0,111670.0,5.89013679]
[1760609811167,0.1329817,111690.0,111680.0,6.17835916]
[1760609811456,0.1329817,111690.0,111680.0,6.10804928]
[1760609811699,0.14707335,111700.0,111690.0,0.17906706]
[1760609811999,0.14707335,111700.0,111690.0,5.92124377]
[1760609812251,0.14707335,111700.0,111690.0,6.27109476]
[1760609812534,0.140765,111710.0,111700.0,6.09797319]
[1760609812972,0.140765,111710.0,111700.0,6.18766331]
[1760609812973,0.140765,111710.0,111700.0,6.18816099]
[1760609813370,0.140765,111710.0,111700.0,5.70123882]
[1760609813704,0.140765,111710.0,111700.0,6.20047489]
[1760609813935,0.140765,111710.0,111700.0,6.20997965]
[1760609815104,0.140765,111710.0,111700.0,5.86997965]
[1760609816624,0.140765,111710.0,111700.0,0.19165256]
[1760609816852,0.140765,111710.0,111700.0,0.86997965]
[1760609817065,0.140765,111710.0,111700.0,5.86997965]
[1760609817283,0.14251485,111710.0,111700.0,5.86997965]
[1760609817707,0.14251485,111710.0,111700.0,5.37070358]
[1760609817919,0.32154985,111710.0,111700.0,5.36119882]
[1760609818208,0.32154985,111710.0,111700.0,0.36119882]
[1760609818639,0.14251485,111710.0,111700.0,0.37045146]
[1760609818641,0.0306809,111710.0,111700.0,5.86972753]
[1760609818854,0.0306809,111710.0,111700.0,0.86972753]
[1760609819335,0.0306809,111710.0,111700.0,5.86972753]
[1760609819566,0.0306809,111710.0,111700.0,6.20972753]
[1760609819811,0.0306809,111710.0,111700.0,6.25319135]
[1760609821513,0.15465665,111720.0,111710.0,5.75795717]
[1760609821762,0.15465665,111720.0,111710.0,5.84764729]
[1760609822259,0.1552398,111720.0,111710.0,6.18764729]
[1760609822480,1e-08,111720.0,111710.0,6.18764729]
[1760609824113,1e-08,111720.0,111710.0,6.15146501]
[1760609824365,1e-08,111720.0,111710.0,6.18764729]
[1760609826231,1e-08,111730.0,111720.0,5.21520125]
[1760609826449,1e-08,111730.0,111720.0,5.93967126]
[1760609826661,0.15263994,111740.0,111730.0,0.21518523]
[1760609826662,1e-08,111740.0,111730.0,0.21518523]
[1760609826879,1e-08,111740.0,111730.0,5.34833917]
[1760609827304,1e-08,111740.0,111730.0,5.84761524]
[1760609827737,1e-08,111740.0,111730.0,5.81143296]
[1760609827959,1e-08,111740.0,111730.0,5.76796914]
[1760609828608,1e-08,111740.0,111730.0,6.10796914]
[1760609828835,1e-08,111740.0,111730.0,6.48833917]
[1760609829054,1e-08,111740.0,111730.0,5.64487535]
[1760609829261,1e-08,111740.0,111730.0,6.10796914]
[1760609829538,0.13614683,111770.0,111760.0,0.1789549]